[Event "*** MasterClass Titled Tuesday Blitz"]
[Site "Chess.com"]
[Date "2017.09.05"]
[Round "10"]
[White "workhard91"]
[Black "NTBT_DHS"]
[Result "0-1"]
[WhiteElo "2290"]
[BlackElo "2498"]
[TimeControl "180+2"]
[EndTime "15:25:21 PDT"]
[Termination "NTBT_DHS won by checkmate"]

1. d4 {[%clk 0:03:01.9]} 1... Nf6 {[%clk 0:03:01.2]} 2. c4 {[%clk 0:03:03]} 2...
g6 {[%clk 0:03:03.1]} 3. Nc3 {[%clk 0:03:04.3]} 3... Bg7 {[%clk 0:03:05]} 4. e4
{[%clk 0:03:05.5]} 4... O-O {[%clk 0:03:06.9]} 5. f3 {[%clk 0:03:07]} 5... d6
{[%clk 0:03:08.4]} 6. Be3 {[%clk 0:03:08.2]} 6... c5 {[%clk 0:03:10]} 7. Nge2
{[%clk 0:03:09.4]} 7... Nc6 {[%clk 0:03:10.8]} 8. d5 {[%clk 0:03:06]} 8... Ne5
{[%clk 0:03:12]} 9. Ng3 {[%clk 0:03:07.2]} 9... h5 {[%clk 0:03:12.7]} 10. Be2
{[%clk 0:03:03.8]} 10... e6 {[%clk 0:03:14.1]} 11. O-O {[%clk 0:02:58.8]} 11...
exd5 {[%clk 0:03:12.8]} 12. cxd5 {[%clk 0:02:59.7]} 12... a6 {[%clk 0:03:14.3]}
13. a4 {[%clk 0:03:00.5]} 13... h4 {[%clk 0:03:15.8]} 14. Nh1 {[%clk 0:03:01.4]}
14... Bd7 {[%clk 0:03:16.5]} 15. Nf2 {[%clk 0:02:52.8]} 15... b5 {[%clk
0:03:13.6]} 16. f4 {[%clk 0:02:16.2]} 16... Nc4 {[%clk 0:03:12.8]} 17. Bxc4
{[%clk 0:02:17.1]} 17... bxc4 {[%clk 0:03:14.7]} 18. e5 {[%clk 0:02:16.5]} 18...
Nh5 {[%clk 0:03:02.7]} 19. Nfe4 {[%clk 0:02:02.9]} 19... dxe5 {[%clk 0:03:02]}
20. Bxc5 {[%clk 0:02:02.7]} 20... Nxf4 {[%clk 0:02:57.9]} 21. Bxf8 {[%clk
0:01:42.8]} 21... Bxf8 {[%clk 0:02:56.7]} 22. Kh1 {[%clk 0:01:13.8]} 22... f5
{[%clk 0:02:54.9]} 23. Nd2 {[%clk 0:01:14]} 23... Rc8 {[%clk 0:02:50]} 24. a5
{[%clk 0:00:35.7]} 24... Bd6 {[%clk 0:02:48]} 25. Nf3 {[%clk 0:00:35.5]} 25...
e4 {[%clk 0:02:44.2]} 26. Nd4 {[%clk 0:00:34.8]} 26... Qg5 {[%clk 0:02:44.9]}
27. Qc2 {[%clk 0:00:21.1]} 27... Nd3 {[%clk 0:02:43.1]} 28. Ne6 {[%clk
0:00:20.6]} 28... Qf6 {[%clk 0:02:40.9]} 29. Nxe4 {[%clk 0:00:18.7]} 29... Qe5
{[%clk 0:02:42]} 30. Nxd6 {[%clk 0:00:18.9]} 30... Qxd6 {[%clk 0:02:42.8]} 31.
Qc3 {[%clk 0:00:18.9]} 31... Bxe6 {[%clk 0:02:38.6]} 32. dxe6 {[%clk 0:00:20.8]}
32... h3 {[%clk 0:02:39.1]} 33. Qf6 {[%clk 0:00:20.1]} 33... hxg2+ {[%clk
0:02:38.3]} 34. Kxg2 {[%clk 0:00:21.6]} 34... Qd5+ {[%clk 0:02:38.1]} 35. Kh3
{[%clk 0:00:17.6]} 35... Ne5 {[%clk 0:02:33.6]} 36. Rae1 {[%clk 0:00:17.2]}
36... Qd3+ {[%clk 0:02:29.2]} 37. Kg2 {[%clk 0:00:18.4]} 37... Qd2+ {[%clk
0:02:29.2]} 38. Kh1 {[%clk 0:00:17.7]} 38... Qxh2+ {[%clk 0:02:29.9]} 39. Kxh2
{[%clk 0:00:18.7]} 39... Ng4+ {[%clk 0:02:31.8]} 40. Kg3 {[%clk 0:00:20.3]}
40... Nxf6 {[%clk 0:02:33.7]} 41. Kf4 {[%clk 0:00:21.3]} 41... Kf8 {[%clk
0:02:30.5]} 42. Kg5 {[%clk 0:00:22.2]} 42... Kg7 {[%clk 0:02:31.8]} 43. e7
{[%clk 0:00:23.5]} 43... c3 {[%clk 0:02:28]} 44. bxc3 {[%clk 0:00:22.9]} 44...
Nh7+ {[%clk 0:02:27.4]} 45. Kf4 {[%clk 0:00:23.6]} 45... Rc4+ {[%clk 0:02:28.6]}
46. Kf3 {[%clk 0:00:24.4]} 46... Rxc3+ {[%clk 0:02:28.5]} 47. Kf2 {[%clk
0:00:25.2]} 47... Nf6 {[%clk 0:02:28.2]} 48. e8=Q {[%clk 0:00:26.2]} 48... Nxe8
{[%clk 0:02:29.8]} 49. Rxe8 {[%clk 0:00:27.6]} 49... Ra3 {[%clk 0:02:29.6]} 50.
Re5 {[%clk 0:00:28]} 50... Kf6 {[%clk 0:02:30]} 51. Rc5 {[%clk 0:00:29.1]} 51...
g5 {[%clk 0:02:30.3]} 52. Rb1 {[%clk 0:00:28.2]} 52... g4 {[%clk 0:02:30.5]} 53.
Rb8 {[%clk 0:00:26.1]} 53... Kg5 {[%clk 0:02:26.9]} 54. Rg8+ {[%clk 0:00:26.2]}
54... Kf4 {[%clk 0:02:27.2]} 55. Rc4+ {[%clk 0:00:27.5]} 55... Ke5 {[%clk
0:02:27.5]} 56. Re8+ {[%clk 0:00:28.2]} 56... Kf6 {[%clk 0:02:27.5]} 57. Rc5
{[%clk 0:00:25.1]} 57... Ra2+ {[%clk 0:02:26.7]} 58. Kg3 {[%clk 0:00:26.2]}
58... Ra3+ {[%clk 0:02:28.1]} 59. Kg2 {[%clk 0:00:27.1]} 59... Ra2+ {[%clk
0:02:29.5]} 60. Kf1 {[%clk 0:00:28.6]} 60... Ra1+ {[%clk 0:02:30.9]} 61. Kf2
{[%clk 0:00:29.6]} 61... Ra2+ {[%clk 0:02:32.2]} 62. Re2 {[%clk 0:00:31.3]}
62... Ra3 {[%clk 0:02:32.1]} 63. Rb2 {[%clk 0:00:31.7]} 63... Kg5 {[%clk
0:02:31.7]} 64. Kg2 {[%clk 0:00:32.8]} 64... g3 {[%clk 0:02:30.1]} 65. Rd2
{[%clk 0:00:30.6]} 65... Kg4 {[%clk 0:02:30.6]} 66. Rc8 {[%clk 0:00:31.7]} 66...
f4 {[%clk 0:02:28.7]} 67. Rg8+ {[%clk 0:00:32.7]} 67... Kf5 {[%clk 0:02:29.9]}
68. Rf8+ {[%clk 0:00:33.8]} 68... Kg4 {[%clk 0:02:30.6]} 69. Rd4 {[%clk
0:00:18.9]} 69... Ra2+ {[%clk 0:02:29.2]} 70. Kf1 {[%clk 0:00:20.3]} 70... Rf2+
{[%clk 0:02:22.9]} 71. Ke1 {[%clk 0:00:21]} 71... Rf3 {[%clk 0:02:21]} 72. Rd6
{[%clk 0:00:18.3]} 72... Re3+ {[%clk 0:02:20.9]} 73. Kf1 {[%clk 0:00:19.7]}
73... Kf3 {[%clk 0:02:20]} 74. Rdf6 {[%clk 0:00:19.8]} 74... g2+ {[%clk
0:02:20.6]} 75. Kg1 {[%clk 0:00:20.3]} 75... Re1+ {[%clk 0:02:22.5]} 76. Kh2
{[%clk 0:00:22.2]} 76... Rh1# {[%clk 0:02:23.8]} 0-1

[Event "*** MasterClass Titled Tuesday Blitz"]
[Site "Chess.com"]
[Date "2017.09.05"]
[Round "10"]
[White "yurisolo"]
[Black "sergiochess83"]
[Result "0-1"]
[WhiteElo "2582"]
[BlackElo "2757"]
[TimeControl "180+2"]
[EndTime "15:25:22 PDT"]
[Termination "sergiochess83 won by resignation"]

1. e4 {[%clk 0:03:01.9]} 1... c5 {[%clk 0:02:59.9]} 2. Nf3 {[%clk 0:03:03.2]}
2... e6 {[%clk 0:03:00.8]} 3. d4 {[%clk 0:03:04.5]} 3... cxd4 {[%clk 0:03:02.7]}
4. Nxd4 {[%clk 0:03:04.8]} 4... Nc6 {[%clk 0:03:02.6]} 5. Nc3 {[%clk 0:03:05.4]}
5... d6 {[%clk 0:03:04.1]} 6. Be3 {[%clk 0:03:01.5]} 6... Nf6 {[%clk 0:03:05.1]}
7. f3 {[%clk 0:02:58.9]} 7... Be7 {[%clk 0:03:04.9]} 8. Qd2 {[%clk 0:02:59.4]}
8... O-O {[%clk 0:03:05]} 9. O-O-O {[%clk 0:03:00.4]} 9... a6 {[%clk 0:03:06.4]}
10. g4 {[%clk 0:03:00.3]} 10... Nxd4 {[%clk 0:03:06.4]} 11. Bxd4 {[%clk
0:02:59.7]} 11... b5 {[%clk 0:03:08.3]} 12. g5 {[%clk 0:02:56.2]} 12... Nd7
{[%clk 0:03:09.1]} 13. h4 {[%clk 0:02:55.8]} 13... Qc7 {[%clk 0:03:10.3]} 14. h5
{[%clk 0:02:51.1]} 14... b4 {[%clk 0:03:08.2]} 15. Na4 {[%clk 0:02:44.6]} 15...
Qa5 {[%clk 0:03:08.7]} 16. b3 {[%clk 0:02:45.4]} 16... Bxg5 {[%clk 0:03:06.6]}
17. f4 {[%clk 0:02:45.5]} 17... Bh6 {[%clk 0:03:06.8]} 18. Rg1 {[%clk 0:02:32]}
18... e5 {[%clk 0:03:06.5]} 19. Be3 {[%clk 0:02:31.3]} 19... exf4 {[%clk
0:03:00.8]} 20. Qxd6 {[%clk 0:02:24.8]} 20... Qxh5 {[%clk 0:02:32.8]} 21. Bd4
{[%clk 0:02:24.2]} 21... f3+ {[%clk 0:02:32.2]} 22. Kb1 {[%clk 0:02:24.7]} 22...
f2 {[%clk 0:02:30.6]} 23. Bxf2 {[%clk 0:02:24.3]} 23... g6 {[%clk 0:02:31.2]}
24. Bc4 {[%clk 0:02:05.4]} 24... Bg7 {[%clk 0:02:30.1]} 25. Bd5 {[%clk
0:01:46.7]} 25... Rb8 {[%clk 0:02:12.7]} 26. Ba7 {[%clk 0:01:45.3]} 26... Rb5
{[%clk 0:02:07.1]} 27. Rh1 {[%clk 0:01:17]} 27... Qe5 {[%clk 0:02:04.1]} 28.
Qxe5 {[%clk 0:01:17.4]} 28... Bxe5 {[%clk 0:02:04.1]} 29. Bc6 {[%clk 0:01:12.4]}
29... Nf6 {[%clk 0:02:02.3]} 30. Nb2 {[%clk 0:00:55.9]} 30... Bg4 {[%clk
0:01:46.6]} 31. Rd3 {[%clk 0:00:56.3]} 31... Bc3 {[%clk 0:01:33.7]} 32. Na4
{[%clk 0:00:48.6]} 32... Be5 {[%clk 0:01:20.5]} 33. Nb6 {[%clk 0:00:49.4]} 33...
Bb8 {[%clk 0:01:12.5]} 34. Bxb5 {[%clk 0:00:46.1]} 34... Bxa7 {[%clk 0:01:13]}
35. Nd7 {[%clk 0:00:42.9]} 35... Bxd7 {[%clk 0:01:11.2]} 36. Bxd7 {[%clk
0:00:43.6]} 36... Nxe4 {[%clk 0:01:12.1]} 37. Rh4 {[%clk 0:00:31.6]} 37... Nc3+
{[%clk 0:01:09.8]} 38. Kb2 {[%clk 0:00:29.5]} 38... Bc5 {[%clk 0:01:09.3]} 39.
Rc4 {[%clk 0:00:25.5]} 39... Be7 {[%clk 0:01:08.7]} 40. Rc7 {[%clk 0:00:26.7]}
40... Bf6 {[%clk 0:01:07.9]} 41. Kc1 {[%clk 0:00:25.1]} 41... Bg5+ {[%clk
0:01:08.7]} 42. Kb2 {[%clk 0:00:24.6]} 42... Bf6 {[%clk 0:01:10.6]} 43. Kc1
{[%clk 0:00:25.9]} 43... Nxa2+ {[%clk 0:01:04.5]} 44. Kd2 {[%clk 0:00:25.9]}
44... Nc3 {[%clk 0:01:06.1]} 45. Ra7 {[%clk 0:00:19.2]} 45... h5 {[%clk
0:01:05.4]} 46. Rxa6 {[%clk 0:00:19.1]} 46... Kg7 {[%clk 0:01:01.9]} 47. Rf3
{[%clk 0:00:18.3]} 47... Rd8 {[%clk 0:00:59.5]} 48. Rd3 {[%clk 0:00:18.5]} 48...
Ne4+ {[%clk 0:00:56.7]} 49. Ke3 {[%clk 0:00:13.7]} 49... Nc5 {[%clk 0:00:58.6]}
50. Ra7 {[%clk 0:00:14]} 50... Nxd3 {[%clk 0:00:58.1]} 51. cxd3 {[%clk
0:00:15.9]} 51... g5 {[%clk 0:00:51.9]} 52. d4 {[%clk 0:00:12.8]} 52... g4
{[%clk 0:00:50.8]} 53. Be6 {[%clk 0:00:13.3]} 53... Bxd4+ {[%clk 0:00:51.1]} 0-1

[Event "*** MasterClass Titled Tuesday Blitz"]
[Site "Chess.com"]
[Date "2017.09.05"]
[Round "10"]
[White "biostatistician"]
[Black "michaelq2d5"]
[Result "0-1"]
[WhiteElo "2442"]
[BlackElo "2629"]
[TimeControl "180+2"]
[EndTime "15:26:04 PDT"]
[Termination "michaelq2d5 won by resignation"]

1. d4 {[%clk 0:03:01.9]} 1... Nf6 {[%clk 0:03:00.1]} 2. Nf3 {[%clk 0:03:03.4]}
2... d5 {[%clk 0:03:01.2]} 3. c4 {[%clk 0:03:04.7]} 3... dxc4 {[%clk 0:03:02.4]}
4. e3 {[%clk 0:03:05]} 4... e6 {[%clk 0:03:03.7]} 5. Bxc4 {[%clk 0:03:06.5]}
5... a6 {[%clk 0:03:05.7]} 6. O-O {[%clk 0:03:06.9]} 6... c5 {[%clk 0:03:07.3]}
7. b3 {[%clk 0:03:07.3]} 7... Nc6 {[%clk 0:03:06.1]} 8. Bb2 {[%clk 0:03:07.5]}
8... b5 {[%clk 0:03:02.1]} 9. Be2 {[%clk 0:03:08]} 9... Bb7 {[%clk 0:03:03.3]}
10. a4 {[%clk 0:03:09.2]} 10... b4 {[%clk 0:03:04.5]} 11. Nbd2 {[%clk
0:03:09.1]} 11... Be7 {[%clk 0:03:05.3]} 12. Nc4 {[%clk 0:03:09.4]} 12... O-O
{[%clk 0:03:06.8]} 13. Rc1 {[%clk 0:03:10]} 13... Rc8 {[%clk 0:02:58.2]} 14.
Nfe5 {[%clk 0:03:03.9]} 14... Nxe5 {[%clk 0:02:52.8]} 15. Nxe5 {[%clk 0:03:05]}
15... Nd5 {[%clk 0:02:41.4]} 16. Bf3 {[%clk 0:03:01.8]} 16... Qb6 {[%clk
0:02:36.8]} 17. Nd7 {[%clk 0:03:00.4]} 17... Qa7 {[%clk 0:02:32]} 18. Nxf8
{[%clk 0:03:01]} 18... Bxf8 {[%clk 0:02:34]} 19. Qd3 {[%clk 0:02:50.8]} 19... a5
{[%clk 0:02:31.4]} 20. Rfd1 {[%clk 0:02:43.6]} 20... Ba6 {[%clk 0:02:31.1]} 21.
Qd2 {[%clk 0:02:38.4]} 21... c4 {[%clk 0:02:24.5]} 22. bxc4 {[%clk 0:02:40.3]}
22... Bxc4 {[%clk 0:02:25]} 23. Be2 {[%clk 0:02:32.5]} 23... Qa6 {[%clk
0:02:07.6]} 24. Bxc4 {[%clk 0:02:00]} 24... Rxc4 {[%clk 0:02:09.6]} 25. Rxc4
{[%clk 0:01:51.8]} 25... Qxc4 {[%clk 0:02:11.6]} 26. Rc1 {[%clk 0:01:47.2]}
26... Qa2 {[%clk 0:01:52.6]} 27. Ra1 {[%clk 0:01:39.8]} 27... Qb3 {[%clk
0:01:52.5]} 28. e4 {[%clk 0:01:32.7]} 28... Nf4 {[%clk 0:01:20.6]} 29. Qxf4
{[%clk 0:01:15.9]} 29... Qxb2 {[%clk 0:01:20.8]} 30. Rd1 {[%clk 0:01:07.6]}
30... Qc2 {[%clk 0:01:21.3]} 31. Ra1 {[%clk 0:00:59.5]} 31... Qb2 {[%clk
0:01:02]} 32. Rd1 {[%clk 0:00:55.5]} 32... Qc2 {[%clk 0:01:00.8]} 33. Qd2 {[%clk
0:00:56.5]} 33... Qxe4 {[%clk 0:00:45.7]} 34. d5 {[%clk 0:00:55.5]} 34... exd5
{[%clk 0:00:35.8]} 35. Qxd5 {[%clk 0:00:57.4]} 35... Qc2 {[%clk 0:00:36.8]} 36.
Qd7 {[%clk 0:00:26.1]} 36... h5 {[%clk 0:00:24.2]} 37. h3 {[%clk 0:00:20.9]}
37... h4 {[%clk 0:00:12.8]} 38. Re1 {[%clk 0:00:21.7]} 38... b3 {[%clk
0:00:12.2]} 39. Qd1 {[%clk 0:00:15.4]} 39... Qc4 {[%clk 0:00:12.7]} 40. Qb1
{[%clk 0:00:11.8]} 40... Qxa4 {[%clk 0:00:05.5]} 41. Re3 {[%clk 0:00:12.4]}
41... Qa2 {[%clk 0:00:02.9]} 42. Rxb3 {[%clk 0:00:12.7]} 42... Qd2 {[%clk
0:00:02.5]} 43. Rb2 {[%clk 0:00:12.7]} 43... Qd4 {[%clk 0:00:03.2]} 44. Rb8
{[%clk 0:00:14.3]} 44... a4 {[%clk 0:00:03.8]} 45. Ra8 {[%clk 0:00:09.1]} 45...
g6 {[%clk 0:00:04.3]} 46. Qe1 {[%clk 0:00:06.6]} 46... Kg7 {[%clk 0:00:03.9]}
47. Qe3 {[%clk 0:00:04.9]} 47... Qd1+ {[%clk 0:00:04.3]} 48. Kh2 {[%clk
0:00:06.2]} 48... Bd6+ {[%clk 0:00:05.8]} 49. f4 {[%clk 0:00:06.9]} 49... g5
{[%clk 0:00:06.1]} 50. g3 {[%clk 0:00:05.5]} 50... hxg3+ {[%clk 0:00:06.2]} 51.
Kg2 {[%clk 0:00:07.1]} 51... Qc2+ {[%clk 0:00:04]} 52. Kf3 {[%clk 0:00:08.3]}
52... Qc6+ {[%clk 0:00:04.4]} 53. Qe4 {[%clk 0:00:09.1]} 53... Qxe4+ {[%clk
0:00:05.6]} 54. Kxe4 {[%clk 0:00:11]} 54... g2 {[%clk 0:00:07.2]} 0-1

[Event "*** MasterClass Titled Tuesday Blitz"]
[Site "Chess.com"]
[Date "2017.09.05"]
[Round "10"]
[White "HanSchut"]
[Black "Alex_Molchanov"]
[Result "0-1"]
[WhiteElo "2326"]
[BlackElo "2495"]
[TimeControl "180+2"]
[EndTime "15:26:58 PDT"]
[Termination "Alex_Molchanov won by resignation"]

1. e4 {[%clk 0:03:01.9]} 1... e5 {[%clk 0:02:59.7]} 2. Nf3 {[%clk 0:03:02.3]}
2... Nc6 {[%clk 0:03:00.8]} 3. Bc4 {[%clk 0:03:02.8]} 3... Bc5 {[%clk
0:03:01.1]} 4. b4 {[%clk 0:03:03.2]} 4... Bb6 {[%clk 0:02:51.9]} 5. a4 {[%clk
0:03:02.8]} 5... a6 {[%clk 0:02:48.1]} 6. O-O {[%clk 0:02:43.4]} 6... d6 {[%clk
0:02:46.2]} 7. h3 {[%clk 0:02:40.3]} 7... Nf6 {[%clk 0:02:45.7]} 8. d3 {[%clk
0:02:37.5]} 8... O-O {[%clk 0:02:26]} 9. c3 {[%clk 0:02:37.3]} 9... Be6 {[%clk
0:02:25.6]} 10. Qb3 {[%clk 0:02:28.8]} 10... Bxc4 {[%clk 0:02:16.7]} 11. Qxc4
{[%clk 0:02:27.3]} 11... Ne7 {[%clk 0:02:13.4]} 12. Bg5 {[%clk 0:02:24.7]} 12...
Ng6 {[%clk 0:02:13.8]} 13. d4 {[%clk 0:02:02.8]} 13... c6 {[%clk 0:02:08.4]} 14.
Nbd2 {[%clk 0:01:57.9]} 14... h6 {[%clk 0:02:03.2]} 15. Be3 {[%clk 0:01:53.1]}
15... Qe7 {[%clk 0:01:35.2]} 16. Rad1 {[%clk 0:01:52.6]} 16... d5 {[%clk
0:01:32.9]} 17. exd5 {[%clk 0:01:47.9]} 17... cxd5 {[%clk 0:01:33.2]} 18. Qb3
{[%clk 0:01:43.2]} 18... e4 {[%clk 0:01:34.4]} 19. Ne5 {[%clk 0:01:28.1]} 19...
Bc7 {[%clk 0:01:22.8]} 20. c4 {[%clk 0:00:58.5]} 20... Nxe5 {[%clk 0:01:15.7]}
21. dxe5 {[%clk 0:00:59.1]} 21... Qxe5 {[%clk 0:01:16.3]} 22. f4 {[%clk
0:00:52.8]} 22... exf3 {[%clk 0:01:10.7]} 23. Nxf3 {[%clk 0:00:53.3]} 23... dxc4
{[%clk 0:01:09.1]} 24. Nxe5 {[%clk 0:00:32.4]} 24... cxb3 {[%clk 0:01:09.4]} 25.
Nc4 {[%clk 0:00:28.4]} 25... Rfe8 {[%clk 0:00:57.8]} 26. Bxh6 {[%clk 0:00:28.3]}
26... Re4 {[%clk 0:00:46.2]} 27. Nd2 {[%clk 0:00:28.4]} 27... Rxb4 {[%clk
0:00:45.3]} 28. Bg5 {[%clk 0:00:23.6]} 28... Nd5 {[%clk 0:00:31]} 29. Rb1 {[%clk
0:00:20.8]} 29... b2 {[%clk 0:00:25.8]} 30. Rf3 {[%clk 0:00:21.7]} 30... Re8
{[%clk 0:00:20.1]} 31. Rd3 {[%clk 0:00:21.8]} 31... Re5 {[%clk 0:00:18.2]} 32.
Nf3 {[%clk 0:00:22.4]} 32... Rf5 {[%clk 0:00:15.4]} 33. g4 {[%clk 0:00:23.6]}
33... Bb6+ {[%clk 0:00:13.7]} 34. Kh2 {[%clk 0:00:21.9]} 34... Bc7+ {[%clk
0:00:13.6]} 35. Kh1 {[%clk 0:00:22.7]} 35... Rxg5 {[%clk 0:00:10.9]} 36. Nxg5
{[%clk 0:00:23.5]} 36... f6 {[%clk 0:00:10.6]} 37. Rxd5 {[%clk 0:00:23.5]} 37...
fxg5 {[%clk 0:00:12.1]} 38. Kg2 {[%clk 0:00:24.1]} 38... Bf4 {[%clk 0:00:11.4]}
39. a5 {[%clk 0:00:24.3]} 39... Bc1 {[%clk 0:00:12.1]} 40. Kf3 {[%clk
0:00:25.6]} 40... Rb3+ {[%clk 0:00:12.2]} 41. Kg2 {[%clk 0:00:27.1]} 41... Kf7
{[%clk 0:00:12.6]} 42. Rc5 {[%clk 0:00:28.2]} 42... Rb5 {[%clk 0:00:13.2]} 43.
Rc7+ {[%clk 0:00:28.8]} 43... Kf6 {[%clk 0:00:13.7]} 44. Rd7 {[%clk 0:00:29.8]}
44... Rxa5 {[%clk 0:00:12.4]} 45. Rxb7 {[%clk 0:00:30.6]} 45... Rb5 {[%clk
0:00:13.9]} 46. Rc7 {[%clk 0:00:31]} 46... a5 {[%clk 0:00:14.9]} 47. Rbxc1
{[%clk 0:00:32.4]} 47... bxc1=Q {[%clk 0:00:14.6]} 48. Rxc1 {[%clk 0:00:34.3]}
48... a4 {[%clk 0:00:16.5]} 49. Rc6+ {[%clk 0:00:35.4]} 49... Ke5 {[%clk
0:00:17.1]} 50. Ra6 {[%clk 0:00:36.3]} 50... Rb2+ {[%clk 0:00:17.2]} 51. Kf1
{[%clk 0:00:35.3]} 51... Ra2 {[%clk 0:00:17.5]} 52. Ra5+ {[%clk 0:00:34.9]}
52... Kf4 {[%clk 0:00:16.4]} 53. Ra8 {[%clk 0:00:35.1]} 53... Kg3 {[%clk
0:00:16.8]} 54. Ra5 {[%clk 0:00:35.7]} 54... Kh4 {[%clk 0:00:16.6]} 55. Ke1
{[%clk 0:00:36.7]} 55... a3 {[%clk 0:00:17.4]} 56. Kd1 {[%clk 0:00:36.4]} 56...
Ra1+ {[%clk 0:00:17.6]} 57. Kc2 {[%clk 0:00:37.6]} 57... a2 {[%clk 0:00:12.6]}
58. Kb2 {[%clk 0:00:38.8]} 58... Rh1 {[%clk 0:00:12.9]} 59. Kxa2 {[%clk
0:00:40]} 59... Rxh3 {[%clk 0:00:14.1]} 60. Kb2 {[%clk 0:00:41.3]} 60... Kxg4
{[%clk 0:00:13.4]} 61. Kc2 {[%clk 0:00:42.6]} 61... Re3 {[%clk 0:00:14.9]} 62.
Kd2 {[%clk 0:00:43.5]} 62... Re7 {[%clk 0:00:16.2]} 63. Ra4+ {[%clk 0:00:44.5]}
63... Kh3 {[%clk 0:00:17.2]} 64. Ra3+ {[%clk 0:00:45.7]} 64... Kh4 {[%clk
0:00:17.8]} 65. Ra8 {[%clk 0:00:44.7]} 65... g4 {[%clk 0:00:18.7]} 66. Rh8+
{[%clk 0:00:45.1]} 66... Kg3 {[%clk 0:00:19.9]} 67. Rh1 {[%clk 0:00:45.7]} 67...
Kg2 {[%clk 0:00:20.8]} 68. Ra1 {[%clk 0:00:46]} 68... g3 {[%clk 0:00:21.7]} 69.
Ra2 {[%clk 0:00:47.3]} 69... Kh2 {[%clk 0:00:22.9]} 0-1

[Event "*** MasterClass Titled Tuesday Blitz"]
[Site "Chess.com"]
[Date "2017.09.05"]
[Round "10"]
[White "BartoszSocko"]
[Black "ViIIagra"]
[Result "0-1"]
[WhiteElo "2629"]
[BlackElo "2681"]
[TimeControl "180+2"]
[EndTime "15:27:19 PDT"]
[Termination "ViIIagra won by resignation"]

1. e4 {[%clk 0:03:01.9]} 1... c5 {[%clk 0:02:57.9]} 2. Nf3 {[%clk 0:03:02.3]}
2... d6 {[%clk 0:02:59.5]} 3. d4 {[%clk 0:03:03.2]} 3... cxd4 {[%clk 0:03:01.4]}
4. Nxd4 {[%clk 0:03:04.8]} 4... Nf6 {[%clk 0:03:03.1]} 5. Nc3 {[%clk 0:03:05.7]}
5... Nc6 {[%clk 0:03:04.8]} 6. Bg5 {[%clk 0:03:05.7]} 6... e6 {[%clk 0:03:06]}
7. Qd2 {[%clk 0:03:06.3]} 7... a6 {[%clk 0:03:07.7]} 8. O-O-O {[%clk 0:03:07.2]}
8... h6 {[%clk 0:03:07.8]} 9. Be3 {[%clk 0:03:01]} 9... Be7 {[%clk 0:03:06.5]}
10. f3 {[%clk 0:03:01.8]} 10... Nxd4 {[%clk 0:03:07.6]} 11. Qxd4 {[%clk
0:03:01.3]} 11... e5 {[%clk 0:03:09.5]} 12. Qd2 {[%clk 0:02:58.4]} 12... Be6
{[%clk 0:03:10.3]} 13. Kb1 {[%clk 0:03:00]} 13... Rc8 {[%clk 0:03:11.7]} 14. g4
{[%clk 0:03:00.3]} 14... Qa5 {[%clk 0:03:13.1]} 15. Nd5 {[%clk 0:02:53.8]} 15...
Qxd2 {[%clk 0:03:13.4]} 16. Rxd2 {[%clk 0:02:55]} 16... Bxd5 {[%clk 0:03:09.4]}
17. exd5 {[%clk 0:02:56.9]} 17... Nd7 {[%clk 0:03:10.9]} 18. h4 {[%clk
0:02:54.6]} 18... Bd8 {[%clk 0:03:11]} 19. c4 {[%clk 0:02:44.6]} 19... Bb6
{[%clk 0:03:11.7]} 20. Bxb6 {[%clk 0:02:45.6]} 20... Nxb6 {[%clk 0:03:13.6]} 21.
b3 {[%clk 0:02:47.2]} 21... Ke7 {[%clk 0:03:13.5]} 22. Bd3 {[%clk 0:02:46.6]}
22... g6 {[%clk 0:03:09.1]} 23. h5 {[%clk 0:02:46.2]} 23... Kf6 {[%clk
0:03:05.8]} 24. Kb2 {[%clk 0:02:41]} 24... Nd7 {[%clk 0:03:03.6]} 25. b4 {[%clk
0:02:41.2]} 25... e4 {[%clk 0:02:57.6]} 26. fxe4 {[%clk 0:02:37.3]} 26... Ne5
{[%clk 0:02:59.2]} 27. Kb3 {[%clk 0:02:35.9]} 27... Nxg4 {[%clk 0:02:58.2]} 28.
Rf1+ {[%clk 0:02:01.8]} 28... Ke7 {[%clk 0:02:57.2]} 29. Be2 {[%clk 0:01:55.5]}
29... Ne5 {[%clk 0:02:56.1]} 30. Rc2 {[%clk 0:01:51.8]} 30... b6 {[%clk
0:02:50.5]} 31. Rfc1 {[%clk 0:01:40]} 31... gxh5 {[%clk 0:02:49.4]} 32. Bxh5
{[%clk 0:01:38.1]} 32... Rhg8 {[%clk 0:02:50.6]} 33. Rc3 {[%clk 0:01:34.4]}
33... Rg5 {[%clk 0:02:33.7]} 34. Rh3 {[%clk 0:01:33.5]} 34... Rg2 {[%clk
0:02:07]} 35. a3 {[%clk 0:01:30.5]} 35... Rd2 {[%clk 0:01:58.9]} 36. Rcc3 {[%clk
0:01:30]} 36... Rd4 {[%clk 0:01:58.6]} 37. Be2 {[%clk 0:01:15.7]} 37... Rxe4
{[%clk 0:01:59.6]} 38. Rce3 {[%clk 0:01:13.5]} 38... Rxe3+ {[%clk 0:01:56.5]}
39. Rxe3 {[%clk 0:01:15.4]} 39... f5 {[%clk 0:01:51]} 40. Rh3 {[%clk 0:01:15.1]}
40... Rh8 {[%clk 0:01:51.9]} 41. Kc3 {[%clk 0:01:13.2]} 41... Kf6 {[%clk
0:01:46.6]} 42. Kd4 {[%clk 0:01:14.3]} 42... Ng6 {[%clk 0:01:27.9]} 43. Re3
{[%clk 0:01:03.9]} 43... Nf4 {[%clk 0:01:27.2]} 44. Bf1 {[%clk 0:01:01]} 44...
h5 {[%clk 0:01:20.9]} 45. Rf3 {[%clk 0:01:02.1]} 45... Kg5 {[%clk 0:01:21]} 46.
Rg3+ {[%clk 0:01:03.4]} 46... Kf6 {[%clk 0:01:22.6]} 47. Rf3 {[%clk 0:01:04.4]}
47... Ng6 {[%clk 0:01:18]} 48. Re3 {[%clk 0:01:04.5]} 48... Ne5 {[%clk
0:01:06.3]} 49. c5 {[%clk 0:01:05.7]} 49... bxc5+ {[%clk 0:01:08.2]} 50. bxc5
{[%clk 0:01:07.6]} 50... dxc5+ {[%clk 0:01:09.7]} 51. Kxc5 {[%clk 0:01:09.5]}
51... f4 {[%clk 0:01:07.3]} 52. Re4 {[%clk 0:01:06.6]} 52... Kf5 {[%clk
0:01:07.2]} 53. Ra4 {[%clk 0:01:07.3]} 53... h4 {[%clk 0:01:05.1]} 54. Bh3+
{[%clk 0:01:08.3]} 54... Kg5 {[%clk 0:01:03.2]} 55. d6 {[%clk 0:01:07.5]} 55...
f3 {[%clk 0:01:01.5]} 56. Kd5 {[%clk 0:01:08.8]} 56... Ng6 {[%clk 0:00:54.7]}
57. Rg4+ {[%clk 0:01:09.2]} 57... Kh5 {[%clk 0:00:56.2]} 58. d7 {[%clk
0:01:01.7]} 58... f2 {[%clk 0:00:54.7]} 59. Re4 {[%clk 0:01:01.6]} 59... Rd8
{[%clk 0:00:52.8]} 60. Kd6 {[%clk 0:01:00.3]} 60... Kg5 {[%clk 0:00:33.8]} 61.
Kc7 {[%clk 0:00:49.5]} 61... Ra8 {[%clk 0:00:33.1]} 62. d8=Q+ {[%clk 0:00:40.6]}
62... Rxd8 {[%clk 0:00:34.2]} 63. Kxd8 {[%clk 0:00:42.5]} 63... Nf4 {[%clk
0:00:36.1]} 64. Re5+ {[%clk 0:00:39.8]} 64... Kg6 {[%clk 0:00:31.6]} 65. Bf1
{[%clk 0:00:37.7]} 65... h3 {[%clk 0:00:33]} 66. Re8 {[%clk 0:00:14.4]} 66... h2
{[%clk 0:00:32.1]} 67. Rh8 {[%clk 0:00:10.6]} 67... Nh5 {[%clk 0:00:33.2]} 68.
Rg8+ {[%clk 0:00:11.7]} 68... Kh7 {[%clk 0:00:29.4]} 69. Rg2 {[%clk 0:00:07.6]}
69... h1=Q {[%clk 0:00:30.3]} 70. Rxf2 {[%clk 0:00:09.1]} 70... Qd5+ {[%clk
0:00:31.5]} 71. Ke7 {[%clk 0:00:09.4]} 71... Qc5+ {[%clk 0:00:32.8]} 0-1